[Event "Early-Titled-Tuesday-Blitz-January-23-2024"]
[Site "Chess.com"]
[Date "2024.01.23"]
[Round "8"]
[White "Goryachkina"]
[Black "FREZZY23"]
[Result "1-0"]
[WhiteElo "2705"]
[BlackElo "2488"]
[TimeControl "180+1"]
[EndTime "9:25:03 PST"]
[Termination "Goryachkina won by resignation"]

1. e4 {[%clk 0:03:00.4]} 1... c5 {[%clk 0:02:58.8]} 2. Nf3 {[%clk 0:03:00.2]}
2... d6 {[%clk 0:02:58.9]} 3. d4 {[%clk 0:03:00.2]} 3... cxd4 {[%clk 0:02:59.5]}
4. Nxd4 {[%clk 0:03:00.6]} 4... Nf6 {[%clk 0:03:00.1]} 5. Nc3 {[%clk 0:03:01]}
5... a6 {[%clk 0:03:00.1]} 6. g3 {[%clk 0:03:00.8]} 6... e5 {[%clk 0:02:58]} 7.
Nb3 {[%clk 0:02:59.8]} 7... Be6 {[%clk 0:02:56.5]} 8. Bg2 {[%clk 0:02:59.8]}
8... Be7 {[%clk 0:02:55.5]} 9. O-O {[%clk 0:02:59.6]} 9... h5 {[%clk 0:02:54.9]}
10. Bg5 {[%clk 0:02:50.7]} 10... Nbd7 {[%clk 0:02:53.6]} 11. h4 {[%clk
0:02:47.1]} 11... Rc8 {[%clk 0:02:50.8]} 12. a4 {[%clk 0:02:44.9]} 12... O-O
{[%clk 0:02:41.5]} 13. a5 {[%clk 0:02:42.8]} 13... Qc7 {[%clk 0:02:35.1]} 14.
Re1 {[%clk 0:02:28.6]} 14... Nc5 {[%clk 0:02:28.4]} 15. Nxc5 {[%clk 0:02:04.2]}
15... Qxc5 {[%clk 0:02:15.5]} 16. Bxf6 {[%clk 0:02:03.4]} 16... Bxf6 {[%clk
0:02:15.1]} 17. Qxh5 {[%clk 0:02:03]} 17... Qb4 {[%clk 0:02:14.5]} 18. Nd5
{[%clk 0:01:37.6]} 18... Bxd5 {[%clk 0:02:12]} 19. exd5 {[%clk 0:01:37.8]} 19...
g6 {[%clk 0:02:12.1]} 20. Qf3 {[%clk 0:01:35.1]} 20... Kg7 {[%clk 0:02:00.3]}
21. h5 {[%clk 0:01:20.9]} 21... Rxc2 {[%clk 0:01:56.7]} 22. h6+ {[%clk
0:01:20.5]} 22... Kxh6 {[%clk 0:01:52.7]} 23. Qxf6 {[%clk 0:01:20.6]} 23... Qxb2
{[%clk 0:01:51.9]} 24. Rab1 {[%clk 0:01:17.2]} 24... Qa2 {[%clk 0:01:51.6]} 25.
Rb4 {[%clk 0:01:15.7]} 25... Rc4 {[%clk 0:01:48.4]} 26. Rxc4 {[%clk 0:01:12.8]}
26... Qxc4 {[%clk 0:01:48.9]} 27. Re4 {[%clk 0:01:10.1]} 27... Qc1+ {[%clk
0:01:48.9]} 28. Bf1 {[%clk 0:01:10.3]} 1-0

[Event "Early-Titled-Tuesday-Blitz-January-23-2024"]
[Site "Chess.com"]
[Date "2024.01.23"]
[Round "8"]
[White "SujanaLohani"]
[Black "fks_stal_mielec"]
[Result "1-0"]
[WhiteElo "2008"]
[BlackElo "2220"]
[TimeControl "180+1"]
[EndTime "9:25:07 PST"]
[Termination "SujanaLohani won by checkmate"]

1. d4 {[%clk 0:03:00.9]} 1... c5 {[%clk 0:02:59.8]} 2. d5 {[%clk 0:03:00.2]}
2... e5 {[%clk 0:02:57.2]} 3. c4 {[%clk 0:02:53.6]} 3... d6 {[%clk 0:02:56.5]}
4. e4 {[%clk 0:02:53.3]} 4... f5 {[%clk 0:02:56.4]} 5. Nc3 {[%clk 0:02:50.9]}
5... Nf6 {[%clk 0:02:55.7]} 6. Bd3 {[%clk 0:02:47.3]} 6... fxe4 {[%clk
0:02:54.4]} 7. Nxe4 {[%clk 0:02:47]} 7... Be7 {[%clk 0:02:54.8]} 8. Qc2 {[%clk
0:02:37.9]} 8... Na6 {[%clk 0:02:38.5]} 9. a3 {[%clk 0:02:34.2]} 9... h6 {[%clk
0:02:32.8]} 10. Nxf6+ {[%clk 0:02:28.5]} 10... Bxf6 {[%clk 0:02:33.7]} 11. Bg6+
{[%clk 0:02:28.5]} 11... Kf8 {[%clk 0:02:33.3]} 12. Ne2 {[%clk 0:02:25.4]} 12...
Nb8 {[%clk 0:02:31.2]} 13. O-O {[%clk 0:02:24.1]} 13... Nd7 {[%clk 0:02:31.1]}
14. f4 {[%clk 0:02:20.9]} 14... exf4 {[%clk 0:02:28.9]} 15. Nxf4 {[%clk
0:02:18.4]} 15... Ne5 {[%clk 0:02:29.5]} 16. Be4 {[%clk 0:01:58.9]} 16... Kg8
{[%clk 0:02:23.1]} 17. Bd2 {[%clk 0:01:55]} 17... a5 {[%clk 0:02:18.8]} 18. Bc3
{[%clk 0:01:54.4]} 18... Ng4 {[%clk 0:02:13.8]} 19. Rae1 {[%clk 0:01:29.4]}
19... Bxc3 {[%clk 0:02:03.5]} 20. Qxc3 {[%clk 0:01:28.9]} 20... Qf6 {[%clk
0:02:02.7]} 21. Qc2 {[%clk 0:01:24.2]} 21... Qd4+ {[%clk 0:02:01.8]} 22. Kh1
{[%clk 0:01:22]} 22... Ne3 {[%clk 0:01:54.1]} 23. Rxe3 {[%clk 0:01:09]} 23...
Qxe3 {[%clk 0:01:53.3]} 24. Ng6 {[%clk 0:01:08.5]} 24... Bd7 {[%clk 0:01:43.9]}
25. Ne7# {[%clk 0:01:04.9]} 1-0

[Event "Early-Titled-Tuesday-Blitz-January-23-2024"]
[Site "Chess.com"]
[Date "2024.01.23"]
[Round "8"]
[White "Witik"]
[Black "BashiqChess"]
[Result "0-1"]
[WhiteElo "2642"]
[BlackElo "2462"]
[TimeControl "180+1"]
[EndTime "9:25:22 PST"]
[Termination "BashiqChess won by resignation"]

1. e4 {[%clk 0:02:59.5]} 1... c5 {[%clk 0:02:53.8]} 2. Nf3 {[%clk 0:02:59.3]}
2... g6 {[%clk 0:02:54.1]} 3. c3 {[%clk 0:02:55.3]} 3... Bg7 {[%clk 0:02:52.1]}
4. d4 {[%clk 0:02:55]} 4... cxd4 {[%clk 0:02:53]} 5. cxd4 {[%clk 0:02:54.5]}
5... d5 {[%clk 0:02:53.7]} 6. e5 {[%clk 0:02:55.1]} 6... Bg4 {[%clk 0:02:53.3]}
7. Bb5+ {[%clk 0:02:53.8]} 7... Nc6 {[%clk 0:02:53.4]} 8. h3 {[%clk 0:02:45.8]}
8... Bxf3 {[%clk 0:02:51.4]} 9. Qxf3 {[%clk 0:02:46.7]} 9... Rc8 {[%clk
0:02:51.6]} 10. Nc3 {[%clk 0:02:40.1]} 10... e6 {[%clk 0:02:52.1]} 11. Qd1
{[%clk 0:02:31.6]} 11... Ne7 {[%clk 0:02:51.2]} 12. O-O {[%clk 0:02:31.4]} 12...
O-O {[%clk 0:02:51.3]} 13. g4 {[%clk 0:02:20.7]} 13... Qb6 {[%clk 0:02:48]} 14.
Be3 {[%clk 0:02:19.1]} 14... f5 {[%clk 0:02:36.6]} 15. exf6 {[%clk 0:02:06.5]}
15... Bxf6 {[%clk 0:02:36.4]} 16. Bxc6 {[%clk 0:02:04.3]} 16... Nxc6 {[%clk
0:02:35.1]} 17. Ne2 {[%clk 0:02:04.5]} 17... Nb4 {[%clk 0:02:22.9]} 18. Qb3
{[%clk 0:01:37.3]} 18... Nc2 {[%clk 0:02:07.6]} 19. Qxb6 {[%clk 0:01:35.6]}
19... axb6 {[%clk 0:02:08.5]} 20. Rac1 {[%clk 0:01:35.6]} 20... Nxe3 {[%clk
0:02:04.6]} 21. fxe3 {[%clk 0:01:32.2]} 21... Bg5 {[%clk 0:01:39.4]} 22. Rf3
{[%clk 0:00:56.5]} 22... Rxc1+ {[%clk 0:01:37.2]} 23. Nxc1 {[%clk 0:00:56.6]}
23... Rxf3 {[%clk 0:01:38.1]} 0-1

[Event "Early-Titled-Tuesday-Blitz-January-23-2024"]
[Site "Chess.com"]
[Date "2024.01.23"]
[Round "8"]
[White "nekotyanof"]
[Black "Byniolus"]
[Result "0-1"]
[WhiteElo "2656"]
[BlackElo "2856"]
[TimeControl "180+1"]
[EndTime "9:25:24 PST"]
[Termination "Byniolus won by resignation"]

1. e4 {[%clk 0:03:00.9]} 1... d6 {[%clk 0:02:59.8]} 2. d4 {[%clk 0:03:00.6]}
2... Nf6 {[%clk 0:03:00.7]} 3. Nc3 {[%clk 0:03:00.7]} 3... c6 {[%clk 0:03:01.1]}
4. Nf3 {[%clk 0:03:00.4]} 4... Bg4 {[%clk 0:03:01]} 5. Bc4 {[%clk 0:03:00.7]}
5... e6 {[%clk 0:03:00.8]} 6. h3 {[%clk 0:03:00.7]} 6... Bh5 {[%clk 0:03:00.9]}
7. g4 {[%clk 0:03:01]} 7... Bg6 {[%clk 0:03:00.7]} 8. Qe2 {[%clk 0:03:01.7]}
8... Be7 {[%clk 0:02:56.1]} 9. a4 {[%clk 0:03:01.8]} 9... d5 {[%clk 0:02:56.1]}
10. Bd3 {[%clk 0:02:57.4]} 10... O-O {[%clk 0:02:51.6]} 11. e5 {[%clk 0:02:57]}
11... Nfd7 {[%clk 0:02:51.9]} 12. Bxg6 {[%clk 0:02:55.2]} 12... fxg6 {[%clk
0:02:51.6]} 13. h4 {[%clk 0:02:47.4]} 13... c5 {[%clk 0:02:47.4]} 14. h5 {[%clk
0:02:47.9]} 14... g5 {[%clk 0:02:43.1]} 15. Be3 {[%clk 0:02:39.3]} 15... Nc6
{[%clk 0:02:38]} 16. dxc5 {[%clk 0:02:37.2]} 16... Rxf3 {[%clk 0:02:27.1]} 17.
Qxf3 {[%clk 0:02:36.6]} 17... d4 {[%clk 0:02:28]} 18. Bd2 {[%clk 0:02:21.7]}
18... Ndxe5 {[%clk 0:02:19.1]} 19. Qe4 {[%clk 0:02:21.1]} 19... dxc3 {[%clk
0:02:14.7]} 20. Bxc3 {[%clk 0:02:22]} 20... Qd5 {[%clk 0:02:12.3]} 21. Qxd5
{[%clk 0:02:21.7]} 21... exd5 {[%clk 0:02:13.2]} 22. O-O-O {[%clk 0:02:22.4]}
22... Rd8 {[%clk 0:01:54.7]} 23. h6 {[%clk 0:02:22.5]} 23... Nxg4 {[%clk
0:01:49.6]} 24. Rdg1 {[%clk 0:01:42.7]} 24... Nxh6 {[%clk 0:01:32]} 25. f4
{[%clk 0:01:42.5]} 25... g4 {[%clk 0:01:20.9]} 26. f5 {[%clk 0:01:42.1]} 26...
Bxc5 {[%clk 0:01:11.4]} 27. Rg2 {[%clk 0:01:37.5]} 27... Be3+ {[%clk 0:01:09.3]}
28. Kb1 {[%clk 0:01:36.8]} 28... d4 {[%clk 0:01:09.1]} 29. Be1 {[%clk
0:01:31.8]} 29... Rf8 {[%clk 0:01:03.9]} 0-1

[Event "Early-Titled-Tuesday-Blitz-January-23-2024"]
[Site "Chess.com"]
[Date "2024.01.23"]
[Round "8"]
[White "VinzentSpitzl"]
[Black "IlanSchnaider"]
[Result "0-1"]
[WhiteElo "2524"]
[BlackElo "2776"]
[TimeControl "180+1"]
[EndTime "9:25:25 PST"]
[Termination "IlanSchnaider won by resignation"]

1. e4 {[%clk 0:03:00.9]} 1... c5 {[%clk 0:03:00.1]} 2. Nf3 {[%clk 0:03:00.9]}
2... d6 {[%clk 0:03:00.7]} 3. d4 {[%clk 0:03:00.7]} 3... cxd4 {[%clk 0:03:01.6]}
4. Nxd4 {[%clk 0:03:01.3]} 4... Nf6 {[%clk 0:03:02.1]} 5. Nc3 {[%clk 0:03:02]}
5... a6 {[%clk 0:03:02.4]} 6. Bg5 {[%clk 0:03:02.6]} 6... e6 {[%clk 0:03:01.8]}
7. Qe2 {[%clk 0:03:02.9]} 7... Be7 {[%clk 0:02:59.5]} 8. f4 {[%clk 0:03:02.9]}
8... h6 {[%clk 0:02:57.4]} 9. Bxf6 {[%clk 0:03:03.1]} 9... Bxf6 {[%clk
0:02:57.9]} 10. O-O-O {[%clk 0:03:03.8]} 10... Qc7 {[%clk 0:02:40.6]} 11. Qd2
{[%clk 0:03:02.5]} 11... Be7 {[%clk 0:02:32.2]} 12. h4 {[%clk 0:02:58.6]} 12...
b5 {[%clk 0:02:31.3]} 13. a3 {[%clk 0:02:52.3]} 13... Bb7 {[%clk 0:02:31]} 14.
g4 {[%clk 0:02:49.5]} 14... Nc6 {[%clk 0:02:28.6]} 15. Nf3 {[%clk 0:02:31.6]}
15... Na5 {[%clk 0:02:16.5]} 16. Be2 {[%clk 0:02:18.5]} 16... Bf6 {[%clk
0:02:09]} 17. e5 {[%clk 0:01:40.9]} 17... dxe5 {[%clk 0:01:52.8]} 18. g5 {[%clk
0:01:40.8]} 18... e4 {[%clk 0:01:24.7]} 19. gxf6 {[%clk 0:01:29.3]} 19... exf3
{[%clk 0:01:24.1]} 20. fxg7 {[%clk 0:01:18.9]} 20... Rg8 {[%clk 0:01:22.7]} 21.
Nxb5 {[%clk 0:01:19]} 21... Nb3+ {[%clk 0:01:21.3]} 0-1

[Event "Early-Titled-Tuesday-Blitz-January-23-2024"]
[Site "Chess.com"]
[Date "2024.01.23"]
[Round "8"]
[White "Mikhail_Golubev"]
[Black "simonachess"]
[Result "1-0"]
[WhiteElo "2512"]
[BlackElo "2350"]
[TimeControl "180+1"]
[EndTime "9:25:46 PST"]
[Termination "Mikhail_Golubev won by resignation"]

1. e4 {[%clk 0:03:00.9]} 1... c5 {[%clk 0:02:59.6]} 2. Nf3 {[%clk 0:03:01]} 2...
Nc6 {[%clk 0:02:58.8]} 3. Nc3 {[%clk 0:03:00.3]} 3... g6 {[%clk 0:02:56.1]} 4.
d4 {[%clk 0:02:59.8]} 4... cxd4 {[%clk 0:02:56.1]} 5. Nxd4 {[%clk 0:03:00.4]}
5... Bg7 {[%clk 0:02:56.6]} 6. Be3 {[%clk 0:03:00.6]} 6... Nf6 {[%clk
0:02:53.3]} 7. Bc4 {[%clk 0:03:00.6]} 7... d6 {[%clk 0:02:49.3]} 8. f3 {[%clk
0:02:58.5]} 8... O-O {[%clk 0:02:49.2]} 9. Qd2 {[%clk 0:02:54]} 9... a6 {[%clk
0:02:47.1]} 10. h4 {[%clk 0:02:49.1]} 10... Ne5 {[%clk 0:02:44.8]} 11. Bb3
{[%clk 0:02:47.3]} 11... b5 {[%clk 0:02:44.9]} 12. h5 {[%clk 0:02:42.1]} 12...
Nc4 {[%clk 0:02:44]} 13. Bxc4 {[%clk 0:02:35.3]} 13... bxc4 {[%clk 0:02:44.9]}
14. O-O-O {[%clk 0:02:26]} 14... Qa5 {[%clk 0:02:08.9]} 15. Bh6 {[%clk
0:02:03.7]} 15... Bxh6 {[%clk 0:02:06.4]} 16. Qxh6 {[%clk 0:02:00.8]} 16... g5
{[%clk 0:02:06.7]} 17. Nc6 {[%clk 0:01:40.5]} 17... Qc7 {[%clk 0:02:01.5]} 18.
Rd5 {[%clk 0:00:53.6]} 18... Bf5 {[%clk 0:01:28.1]} 19. Rxf5 {[%clk 0:00:38.5]}
19... Kh8 {[%clk 0:01:25.7]} 20. Nxe7 {[%clk 0:00:32.6]} 20... Qxe7 {[%clk
0:01:25]} 21. Qxf6+ {[%clk 0:00:32.4]} 21... Qxf6 {[%clk 0:01:24.4]} 22. Rxf6
{[%clk 0:00:33.3]} 1-0

[Event "Early-Titled-Tuesday-Blitz-January-23-2024"]
[Site "Chess.com"]
[Date "2024.01.23"]
[Round "8"]
[White "Muslim_player_05"]
[Black "carloseduar100"]
[Result "1-0"]
[WhiteElo "2501"]
[BlackElo "2288"]
[TimeControl "180+1"]
[EndTime "9:25:55 PST"]
[Termination "Muslim_player_05 won by resignation"]

1. d4 {[%clk 0:03:00.9]} 1... d5 {[%clk 0:02:59.7]} 2. c4 {[%clk 0:02:59.4]}
2... e5 {[%clk 0:02:59.4]} 3. dxe5 {[%clk 0:02:59.2]} 3... d4 {[%clk 0:03:00.3]}
4. Nf3 {[%clk 0:02:59.7]} 4... Nc6 {[%clk 0:03:00.1]} 5. g3 {[%clk 0:02:58.2]}
5... Nge7 {[%clk 0:03:00.1]} 6. Bg2 {[%clk 0:02:54.8]} 6... Ng6 {[%clk
0:03:00.1]} 7. O-O {[%clk 0:02:49.1]} 7... Ngxe5 {[%clk 0:03:00]} 8. Nxe5 {[%clk
0:02:47.9]} 8... Nxe5 {[%clk 0:03:00.9]} 9. b3 {[%clk 0:02:40.5]} 9... Bc5
{[%clk 0:02:54.5]} 10. Nd2 {[%clk 0:02:39.1]} 10... a5 {[%clk 0:02:29.1]} 11.
Ne4 {[%clk 0:02:31.5]} 11... Be7 {[%clk 0:02:29.2]} 12. Bb2 {[%clk 0:02:31.2]}
12... c5 {[%clk 0:02:29.5]} 13. e3 {[%clk 0:02:28.8]} 13... dxe3 {[%clk
0:02:27.1]} 14. Qxd8+ {[%clk 0:02:17.6]} 14... Bxd8 {[%clk 0:02:25.7]} 15. Nd6+
{[%clk 0:02:13.7]} 15... Ke7 {[%clk 0:02:19.6]} 16. Bxe5 {[%clk 0:02:10]} 16...
exf2+ {[%clk 0:02:19.7]} 17. Rxf2 {[%clk 0:02:09.4]} 17... f6 {[%clk 0:02:20.1]}
18. Nxc8+ {[%clk 0:02:05.6]} 18... Rxc8 {[%clk 0:02:21]} 19. Bxb7 {[%clk
0:02:04.7]} 19... Bc7 {[%clk 0:02:09.2]} 20. Bxc7 {[%clk 0:01:47.7]} 20... Rxc7
{[%clk 0:02:09.2]} 21. Re1+ {[%clk 0:01:48.4]} 21... Kf7 {[%clk 0:02:07]} 22.
Bd5+ {[%clk 0:01:47.9]} 22... Kg6 {[%clk 0:02:07.5]} 23. Be4+ {[%clk 0:01:46.2]}
23... Kf7 {[%clk 0:02:06]} 24. Rfe2 {[%clk 0:01:44.1]} 24... a4 {[%clk
0:01:55.8]} 25. bxa4 {[%clk 0:01:41.6]} 25... Ra7 {[%clk 0:01:55.3]} 26. Bc6
{[%clk 0:01:37.9]} 26... Rd8 {[%clk 0:01:52.6]} 27. Bb5 {[%clk 0:01:26.8]} 27...
h5 {[%clk 0:01:51.3]} 28. Re8 {[%clk 0:01:25.3]} 28... Rd2 {[%clk 0:01:49.7]}
29. Rh8 {[%clk 0:01:22.2]} 29... Kg6 {[%clk 0:01:45.1]} 30. Be8+ {[%clk
0:01:21.4]} 30... Kg5 {[%clk 0:01:45.5]} 31. Rxh5+ {[%clk 0:01:21]} 31... Kg4
{[%clk 0:01:45.5]} 32. Rh4+ {[%clk 0:01:13.9]} 32... Kg5 {[%clk 0:01:44.2]} 33.
Rh5+ {[%clk 0:01:09.4]} 33... Kg4 {[%clk 0:01:44]} 34. Rf1 {[%clk 0:01:09.1]}
34... g5 {[%clk 0:01:40.7]} 35. Rh6 {[%clk 0:01:07.4]} 1-0

[Event "Early-Titled-Tuesday-Blitz-January-23-2024"]
[Site "Chess.com"]
[Date "2024.01.23"]
[Round "8"]
[White "lefonghua"]
[Black "GlavkonVVS"]
[Result "0-1"]
[WhiteElo "2607"]
[BlackElo "2489"]
[TimeControl "180+1"]
[EndTime "9:25:59 PST"]
[Termination "GlavkonVVS won by resignation"]

1. d4 {[%clk 0:03:00.9]} 1... Nf6 {[%clk 0:02:59.8]} 2. c4 {[%clk 0:03:00.8]}
2... c5 {[%clk 0:03:00.2]} 3. d5 {[%clk 0:03:00.5]} 3... e6 {[%clk 0:03:00.5]}
4. Nc3 {[%clk 0:03:00.7]} 4... exd5 {[%clk 0:03:00.9]} 5. cxd5 {[%clk
0:03:01.6]} 5... d6 {[%clk 0:03:01.3]} 6. e4 {[%clk 0:03:02.3]} 6... g6 {[%clk
0:03:01.7]} 7. f4 {[%clk 0:03:03]} 7... Bg7 {[%clk 0:03:02]} 8. Nf3 {[%clk
0:03:03.8]} 8... O-O {[%clk 0:03:01.4]} 9. Be2 {[%clk 0:03:04.4]} 9... Re8
{[%clk 0:03:01.6]} 10. Nd2 {[%clk 0:03:04.5]} 10... a6 {[%clk 0:03:01.4]} 11. a4
{[%clk 0:03:04.1]} 11... Nbd7 {[%clk 0:02:58.8]} 12. O-O {[%clk 0:03:04]} 12...
c4 {[%clk 0:02:59.2]} 13. Bf3 {[%clk 0:02:49.6]} 13... Nc5 {[%clk 0:02:58.4]}
14. e5 {[%clk 0:02:49.2]} 14... dxe5 {[%clk 0:02:57.9]} 15. fxe5 {[%clk
0:02:50.1]} 15... Rxe5 {[%clk 0:02:55.8]} 16. Nxc4 {[%clk 0:02:50.6]} 16... Re8
{[%clk 0:02:51.4]} 17. Bg5 {[%clk 0:02:49.1]} 17... h6 {[%clk 0:02:47.4]} 18.
Bh4 {[%clk 0:02:49.4]} 18... Bf5 {[%clk 0:02:36.3]} 19. d6 {[%clk 0:02:32.6]}
19... Bd3 {[%clk 0:02:18.5]} 20. Be2 {[%clk 0:02:16.7]} 20... Rxe2 {[%clk
0:02:16.9]} 21. Nxe2 {[%clk 0:02:16.5]} 21... Bxc4 {[%clk 0:02:16]} 22. Qd4
{[%clk 0:02:13.4]} 22... Bxe2 {[%clk 0:02:13.8]} 23. Bxf6 {[%clk 0:02:09.2]}
23... Ne6 {[%clk 0:01:55.8]} 24. Qf2 {[%clk 0:02:03.1]} 24... Bxf1 {[%clk
0:01:52.1]} 25. Bxd8 {[%clk 0:02:02.2]} 25... Bd4 {[%clk 0:01:51.8]} 26. Bb6
{[%clk 0:01:49.8]} 26... Bxf2+ {[%clk 0:01:48.9]} 27. Kxf2 {[%clk 0:01:50.7]}
27... Bc4 {[%clk 0:01:41.3]} 28. Rc1 {[%clk 0:01:47.8]} 28... Bd5 {[%clk
0:01:36.3]} 29. b4 {[%clk 0:01:30]} 29... Bc6 {[%clk 0:01:32.8]} 30. a5 {[%clk
0:01:27.9]} 30... f5 {[%clk 0:01:22.6]} 31. g3 {[%clk 0:01:24.8]} 31... Kf7
{[%clk 0:01:22.4]} 32. Ke3 {[%clk 0:01:25.1]} 32... Nf8 {[%clk 0:01:17]} 33. Kd4
{[%clk 0:01:18.5]} 33... Nd7 {[%clk 0:01:16.2]} 34. Bc7 {[%clk 0:01:12.5]} 34...
Re8 {[%clk 0:01:15.4]} 35. Kd3 {[%clk 0:01:07.5]} 35... Re4 {[%clk 0:01:12.3]}
36. Rb1 {[%clk 0:01:04.9]} 36... Ke6 {[%clk 0:01:12.4]} 0-1

[Event "Early-Titled-Tuesday-Blitz-January-23-2024"]
[Site "Chess.com"]
[Date "2024.01.23"]
[Round "8"]
[White "cthulhuuu"]
[Black "margarita_2703"]
[Result "0-1"]
[WhiteElo "2429"]
[BlackElo "2289"]
[TimeControl "180+1"]
[EndTime "9:26:00 PST"]
[Termination "margarita_2703 won on time"]

1. e4 {[%clk 0:02:59.5]} 1... e5 {[%clk 0:02:37.4]} 2. Nf3 {[%clk 0:02:59.8]}
2... Nc6 {[%clk 0:02:35.2]} 3. Bb5 {[%clk 0:02:59.7]} 3... a6 {[%clk 0:02:33.6]}
4. Bxc6 {[%clk 0:02:59.9]} 4... dxc6 {[%clk 0:02:33.6]} 5. O-O {[%clk
0:03:00.8]} 5... Bg4 {[%clk 0:02:30.5]} 6. h3 {[%clk 0:03:01.2]} 6... h5 {[%clk
0:02:29.4]} 7. d3 {[%clk 0:03:01.7]} 7... Qf6 {[%clk 0:02:22.9]} 8. Nbd2 {[%clk
0:03:01.6]} 8... g5 {[%clk 0:02:18.4]} 9. Nc4 {[%clk 0:03:00.5]} 9... Bd6 {[%clk
0:02:17.1]} 10. Bxg5 {[%clk 0:02:47.9]} 10... Qg6 {[%clk 0:02:14.6]} 11. hxg4
{[%clk 0:01:14.5]} 11... hxg4 {[%clk 0:02:10.8]} 12. Nh4 {[%clk 0:01:14.8]}
12... Qxg5 {[%clk 0:02:08.5]} 13. g3 {[%clk 0:01:15.3]} 13... Rxh4 {[%clk
0:02:06.4]} 14. gxh4 {[%clk 0:01:12.9]} 14... Qxh4 {[%clk 0:02:07.3]} 15. Ne3
{[%clk 0:01:03.4]} 15... Nf6 {[%clk 0:02:02.5]} 16. Nf5 {[%clk 0:00:35.1]} 16...
Qh3 {[%clk 0:01:58.4]} 17. Re1 {[%clk 0:00:10.6]} 17... O-O-O {[%clk 0:01:55.5]}
18. Re3 {[%clk 0:00:10.1]} 18... Qh5 {[%clk 0:01:55.2]} 19. Nxd6+ {[%clk
0:00:08.3]} 19... cxd6 {[%clk 0:01:54.4]} 20. Qf1 {[%clk 0:00:08.5]} 20... Rh8
{[%clk 0:01:54.2]} 21. Qg2 {[%clk 0:00:08.9]} 21... Qh4 {[%clk 0:01:53.6]} 22.
Rg3 {[%clk 0:00:08.9]} 22... Rg8 {[%clk 0:01:53.3]} 23. Kf1 {[%clk 0:00:07.5]}
23... Nh5 {[%clk 0:01:53.4]} 24. Ke2 {[%clk 0:00:06.6]} 24... Nf4+ {[%clk
0:01:52.9]} 0-1

[Event "Early-Titled-Tuesday-Blitz-January-23-2024"]
[Site "Chess.com"]
[Date "2024.01.23"]
[Round "8"]
[White "eljanov"]
[Black "GHANDEEVAM2003"]
[Result "0-1"]
[WhiteElo "2889"]
[BlackElo "3052"]
[TimeControl "180+1"]
[EndTime "9:26:10 PST"]
[Termination "GHANDEEVAM2003 won by resignation"]

1. d4 {[%clk 0:03:00.9]} 1... e6 {[%clk 0:02:58.6]} 2. c4 {[%clk 0:03:00.5]}
2... c5 {[%clk 0:02:58.9]} 3. d5 {[%clk 0:03:00.2]} 3... exd5 {[%clk 0:02:59.8]}
4. cxd5 {[%clk 0:03:00.3]} 4... d6 {[%clk 0:03:00.5]} 5. Nc3 {[%clk 0:02:59.9]}
5... a6 {[%clk 0:03:01.2]} 6. a4 {[%clk 0:02:58.2]} 6... g6 {[%clk 0:03:01.9]}
7. e4 {[%clk 0:02:55.9]} 7... Bg7 {[%clk 0:03:02.5]} 8. h3 {[%clk 0:02:53.6]}
8... Ne7 {[%clk 0:03:01.5]} 9. Nf3 {[%clk 0:02:48.6]} 9... O-O {[%clk
0:02:59.1]} 10. Bd3 {[%clk 0:02:48.5]} 10... Nd7 {[%clk 0:02:58]} 11. O-O {[%clk
0:02:48.3]} 11... f5 {[%clk 0:02:53.7]} 12. exf5 {[%clk 0:02:47.4]} 12... Nxf5
{[%clk 0:02:54.6]} 13. Bg5 {[%clk 0:02:44.3]} 13... Qb6 {[%clk 0:02:43.1]} 14.
Qd2 {[%clk 0:02:35.9]} 14... Ne5 {[%clk 0:02:34.6]} 15. Nxe5 {[%clk 0:02:33.5]}
15... Bxe5 {[%clk 0:02:35.5]} 16. a5 {[%clk 0:02:10.1]} 16... Qb4 {[%clk
0:02:35.3]} 17. Rfe1 {[%clk 0:01:46.4]} 17... Bd7 {[%clk 0:02:27.3]} 18. Re4
{[%clk 0:01:45.8]} 18... Nd4 {[%clk 0:02:20.8]} 19. f4 {[%clk 0:01:42.4]} 19...
Bg7 {[%clk 0:02:15.3]} 20. Be7 {[%clk 0:01:33.3]} 20... c4 {[%clk 0:02:02.8]}
21. Bc2 {[%clk 0:00:56.7]} 21... Qxb2 {[%clk 0:01:56.4]} 22. Ra2 {[%clk
0:00:56.6]} 22... Nb3 {[%clk 0:01:43.8]} 23. Bxb3 {[%clk 0:00:50.1]} 23... Qxd2
{[%clk 0:01:35.8]} 24. Rxd2 {[%clk 0:00:49]} 24... cxb3 {[%clk 0:01:36.7]} 25.
Rb2 {[%clk 0:00:19.9]} 25... Rfc8 {[%clk 0:01:24.4]} 0-1

[Event "Early-Titled-Tuesday-Blitz-January-23-2024"]
[Site "Chess.com"]
[Date "2024.01.23"]
[Round "8"]
[White "N4700000"]
[Black "Djager97"]
[Result "0-1"]
[WhiteElo "2413"]
[BlackElo "2571"]
[TimeControl "180+1"]
[EndTime "9:26:10 PST"]
[Termination "Djager97 won by resignation"]

1. e4 {[%clk 0:02:58.9]} 1... e6 {[%clk 0:03:00.3]} 2. d4 {[%clk 0:02:55.7]}
2... d5 {[%clk 0:03:01.2]} 3. Bd3 {[%clk 0:02:55.7]} 3... dxe4 {[%clk
0:03:00.8]} 4. Bxe4 {[%clk 0:02:56]} 4... Nf6 {[%clk 0:03:01.7]} 5. Bf3 {[%clk
0:02:56.2]} 5... c5 {[%clk 0:03:02.3]} 6. Ne2 {[%clk 0:02:55.6]} 6... Nc6 {[%clk
0:03:02]} 7. Be3 {[%clk 0:02:54.6]} 7... e5 {[%clk 0:03:02.5]} 8. Bxc6+ {[%clk
0:02:41.7]} 8... bxc6 {[%clk 0:03:03.4]} 9. dxe5 {[%clk 0:02:31.6]} 9... Qxd1+
{[%clk 0:03:04.3]} 10. Kxd1 {[%clk 0:02:31.9]} 10... Ng4 {[%clk 0:03:04.9]} 11.
Nd2 {[%clk 0:02:19.2]} 11... Ba6 {[%clk 0:03:03.1]} 12. Nf3 {[%clk 0:02:12.4]}
12... O-O-O+ {[%clk 0:03:01]} 13. Ke1 {[%clk 0:02:12.3]} 13... Re8 {[%clk
0:02:41.2]} 14. Nf4 {[%clk 0:01:39.1]} 14... Nxe5 {[%clk 0:02:34]} 15. Nxe5
{[%clk 0:01:38.8]} 15... Rxe5 {[%clk 0:02:34.5]} 16. Rd1 {[%clk 0:01:34.9]}
16... Be7 {[%clk 0:02:32.4]} 17. Kd2 {[%clk 0:01:30.9]} 17... f5 {[%clk
0:02:13.1]} 18. Kc1 {[%clk 0:01:06.9]} 18... g5 {[%clk 0:02:12.7]} 19. Nd3
{[%clk 0:01:06.6]} 19... Rd5 {[%clk 0:02:12.8]} 20. g3 {[%clk 0:00:58]} 20... c4
{[%clk 0:02:01.4]} 21. Ne1 {[%clk 0:00:50.3]} 21... Rxd1+ {[%clk 0:02:01.3]} 22.
Kxd1 {[%clk 0:00:51.2]} 22... Rd8+ {[%clk 0:02:00.6]} 23. Kc1 {[%clk 0:00:50.6]}
23... c3 {[%clk 0:02:01]} 24. Nf3 {[%clk 0:00:35.8]} 24... cxb2+ {[%clk
0:01:54.6]} 25. Kxb2 {[%clk 0:00:36.7]} 25... Bf6+ {[%clk 0:01:54.2]} 26. Kc1
{[%clk 0:00:35.9]} 26... Bc4 {[%clk 0:01:33.2]} 27. a3 {[%clk 0:00:26.6]} 27...
Bd5 {[%clk 0:01:31]} 0-1